fUST/lending_fUST_20260601
["ID","MTS","AMOUNT","RATE_DAILY","PERIOD"]
[423662733,1780287042000,-501.04255302,0.00025325,2]
[423662741,1780287042000,-183.1144073,0.00025325,2]
[423662750,1780287042000,-500.0,0.00025325,2]
[423662751,1780287042000,-500.0,0.00025325,2]
[423662740,1780287042000,-501.87087957,0.00025325,2]
[423662749,1780287042000,-500.0,0.00025325,2]
[423662746,1780287042000,-500.50041139,0.00025325,2]
[423662752,1780287042000,-500.0,0.00025325,2]
[423662744,1780287042000,-500.0,0.00025325,2]
[423662748,1780287042000,-500.0,0.00025325,2]
[423662745,1780287042000,-1193.2565,0.00025325,2]
[423662742,1780287042000,-500.0,0.00025325,2]
[423662743,1780287042000,-500.0,0.00025325,2]
[423662731,1780287042000,-546.85381814,0.00025325,2]
[423662754,1780287042000,-500.0,0.00025325,2]
[423662755,1780287042000,-309.62180551,0.00025325,2]
[423662759,1780287042000,-503.15279632,0.00025325,2]
[423662762,1780287042000,-500.0,0.00025325,2]
[423662760,1780287042000,-285.34268976,0.00025325,2]
[423662757,1780287042000,-500.0,0.00025325,2]
[423662764,1780287042000,-500.0,0.00025325,2]
[423662758,1780287042000,-502.18386137,0.00025325,2]
[423662753,1780287042000,-500.0,0.00025325,2]
[423662756,1780287042000,-211.14022913,0.00025325,2]
[423662763,1780287042000,-500.0,0.00025325,2]
[423662766,1780287042000,-500.30930705,0.00025325,2]
[423662765,1780287042000,-504.04995612,0.00025325,2]
[423662767,1780287042000,-502.44848833,0.00025325,2]
[423662704,1780287042000,-500.0,0.00025325,2]
[423662761,1780287042000,-504.53435271,0.00025325,2]
[423662729,1780287042000,-501.57128687,0.00025325,2]
[423662747,1780287042000,-500.0,0.00025325,2]
[423662735,1780287042000,-501.47440408,0.00025325,2]
[423662700,1780287042000,-500.0,0.00025325,2]
[423662732,1780287042000,-501.55935881,0.00025325,2]
[423662705,1780287042000,-500.0,0.00025325,2]
[423662702,1780287042000,-502.37321147,0.00025325,2]
[423662703,1780287042000,-500.0,0.00025325,2]
[423662708,1780287042000,-500.0,0.00025325,2]
[423662707,1780287042000,-500.0,0.00025325,2]
[423662706,1780287042000,-501.01977851,0.00025325,2]
[423662709,1780287042000,-500.0,0.00025325,2]
[423662711,1780287042000,-1059.653161,0.00025325,2]
[423662710,1780287042000,-500.0,0.00025325,2]
[423662713,1780287042000,-1059.653161,0.00025325,2]
[423662715,1780287042000,-1059.653161,0.00025325,2]
[423662712,1780287042000,-500.90615019,0.00025325,2]
[423662714,1780287042000,-500.0,0.00025325,2]
[423662699,1780287042000,-500.0,0.00025325,2]
[423662726,1780287042000,-500.32890451,0.00025325,2]
[423662723,1780287042000,-500.0,0.00025325,2]
[423662739,1780287042000,-500.75275145,0.00025325,2]
[423662725,1780287042000,-500.0,0.00025325,2]
[423662737,1780287042000,-500.88178795,0.00025325,2]
[423662720,1780287042000,-500.49115145,0.00025325,2]
[423662727,1780287042000,-500.0,0.00025325,2]
[423662721,1780287042000,-500.0,0.00025325,2]
[423662719,1780287042000,-500.38151658,0.00025325,2]
[423662724,1780287042000,-502.33253212,0.00025325,2]
[423662718,1780287042000,-501.6618017,0.00025325,2]
[423662716,1780287042000,-1059.653161,0.00025325,2]
[423662717,1780287042000,-500.0,0.00025325,2]
[423662722,1780287042000,-500.0,0.00025325,2]
[423662730,1780287042000,-500.0,0.00025325,2]
[423662787,1780287043000,-500.0,0.00025597,2]
[423662790,1780287043000,-500.0,0.00025597,2]
[423662798,1780287043000,-169.3,0.00025598,2]
[423662785,1780287043000,-500.0,0.00025597,2]
[423662789,1780287043000,-500.0,0.00025597,2]
[423662791,1780287043000,-500.0,0.00025597,2]
[423662807,1780287043000,-500.0,0.0002642,2]
[423662788,1780287043000,-500.0,0.00025597,2]
[423662796,1780287043000,-500.0,0.00025598,2]
[423662806,1780287043000,-300.0,0.00026147,2]
[423662809,1780287043000,-500.0,0.00026968,2]
[423662808,1780287043000,-500.0,0.00026694,2]
[423662794,1780287043000,-500.0,0.00025597,2]
[423662786,1780287043000,-500.0,0.00025597,2]
[423662792,1780287043000,-500.0,0.00025597,2]
[423662778,1780287043000,-500.0,0.00025325,2]
[423662784,1780287043000,-500.0,0.00025597,2]
[423662804,1780287043000,-500.0,0.00025872,2]
[423662769,1780287043000,-500.62407722,0.00025325,2]
[423662780,1780287043000,-501.3584065,0.00025325,2]
[423662777,1780287043000,-550.35465854,0.00025325,2]
[423662779,1780287043000,-500.0,0.00025325,2]
[423662770,1780287043000,-506.66812952,0.00025325,2]
[423662771,1780287043000,-500.0,0.00025325,2]
[423662768,1780287043000,-501.19247836,0.00025325,2]
[423662772,1780287043000,-501.57328794,0.00025325,2]
[423662773,1780287043000,-500.0,0.00025325,2]
[423662774,1780287043000,-500.0,0.00025325,2]
[423662775,1780287043000,-502.51099253,0.00025325,2]
[423662776,1780287043000,-330.85000053,0.00025325,2]
[423662783,1780287043000,-500.0,0.00025597,2]
[423662781,1780287043000,-500.0,0.00025597,2]
[423662782,1780287043000,-500.0,0.00025597,2]
[423662803,1780287043000,-500.0,0.00025871,2]
[423662793,1780287043000,-500.0,0.00025597,2]
[423662799,1780287043000,-500.0,0.00025599,2]
[423662831,1780287043000,-715.70674524,0.000327,120]
[423662829,1780287043000,-616.95917731,0.000327,120]
[423662828,1780287043000,-1059.653161,0.00032698,7]
[423662827,1780287043000,-1059.653161,0.00032698,7]
[423662830,1780287043000,-705.24593049,0.000327,120]
[423662832,1780287043000,-725.74117272,0.000327,120]
[423662834,1780287043000,-248.44399838,0.000328,2]
[423662833,1780287043000,-152.0,0.00032794,7]
[423662841,1780287043000,-3414.75661125,0.000332,117]
[423662837,1780287043000,-500.0,0.00032877,12]
[423662836,1780287043000,-500.0,0.00032877,10]
[423662839,1780287043000,-5793.75795015,0.000332,2]
[423662835,1780287043000,-1980.0,0.00032876,120]
[423662840,1780287043000,-57785.11609963,0.000332,117]
[423662802,1780287043000,-500.0,0.00025871,2]
[423662826,1780287043000,-1059.653161,0.00032698,7]
[423662825,1780287043000,-1059.653161,0.00032698,7]
[423662838,1780287043000,-152.0,0.00033011,7]
[423662822,1780287043000,-500.0,0.00032698,2]
[423662821,1780287043000,-501.83047665,0.00032698,2]
[423662801,1780287043000,-500.0,0.00025599,2]
[423662805,1780287043000,-500.0,0.00026146,2]
[423662814,1780287043000,-185.0,0.00028713,2]
[423662800,1780287043000,-500.0,0.00025599,2]
[423662812,1780287043000,-500.0,0.0002779,2]
[423662813,1780287043000,-315.26000001,0.00028064,2]
[423662810,1780287043000,-500.0,0.00027242,2]
[423662815,1780287043000,-151.0,0.0003,14]
[423662811,1780287043000,-500.0,0.00027516,2]
[423662816,1780287043000,-151.0,0.00031067,14]
[423662818,1780287043000,-5904.6272058,0.00031929,2]
[423662820,1780287043000,-151.0,0.00032133,14]
[423662819,1780287043000,-1166.3519274,0.00031929,2]
[423662823,1780287043000,-500.0,0.00032698,2]
[423662817,1780287043000,-185.0,0.00031713,2]
[423662846,1780287123000,3000.0,0.00021429,120]
[423662849,1780287673000,282.74420559,0.00021454,120]
[423662850,1780287733000,7629.50276,0.00021454,120]
[423662869,1780288232000,-1200.0,0.00013875,2]
[423662867,1780288232000,-3751.52906364,0.00013737,2]
[423662865,1780288232000,-808.52906721,0.00013737,2]
[423662868,1780288232000,-111.95129368,0.00013737,2]
[423662871,1780288232000,-2271.4506766,0.00013876,2]
[423662870,1780288232000,-2728.5493234,0.00013876,2]
[423662866,1780288232000,-327.99057547,0.00013737,2]
[423662872,1780288232000,-300.0,0.00014299,2]
[423662878,1780288232000,-177.51028848,0.00014471,2]
[423662874,1780288232000,-162.17,0.00014301,2]
[423662875,1780288232000,-178.12457514,0.00014446,2]
[423662876,1780288232000,-182.26905389,0.00014446,2]
[423662877,1780288232000,-160.54247104,0.00014446,2]
[423662879,1780288232000,-165.77614386,0.00014844,2]
[423662880,1780288232000,-7607.6676741,0.00014844,2]
[423662881,1780288232000,-253.79742085,0.00014844,2]
[423662873,1780288232000,-300.0,0.000143,2]
[423662888,1780288238000,-2597.96851266,0.00014844,2]
[423662889,1780288238000,-3915.48408978,0.00014844,2]
[423662898,1780288238000,-500.0,0.00014944,2]
[423662891,1780288238000,-393.87181618,0.00014943,2]
[423662894,1780288238000,-500.0,0.00014944,2]
[423662890,1780288238000,-15101.67295672,0.00014844,2]
[423662893,1780288238000,-500.0,0.00014944,2]
[423662895,1780288238000,-500.0,0.00014944,2]
[423662897,1780288238000,-500.0,0.00014944,2]
[423662896,1780288238000,-500.0,0.00014944,2]
[423662892,1780288238000,-500.0,0.00014944,2]
[423662899,1780288238000,-500.0,0.00014944,2]
[423662949,1780288239000,-500.0,0.00015492,2]
[423662942,1780288239000,-500.0,0.0001547,2]
[423662939,1780288239000,-3128.5,0.00015363,2]
[423662940,1780288239000,-661.32,0.00015363,2]
[423662938,1780288239000,-500.0,0.00015363,2]
[423662935,1780288239000,-500.0,0.00015363,2]
[423662929,1780288239000,-500.0,0.00015218,2]
[423662950,1780288239000,-500.0,0.00015492,2]
[423662934,1780288239000,-173.99386702,0.00015264,2]
[423662936,1780288239000,-500.0,0.00015363,2]
[423662933,1780288239000,-181.33865124,0.00015264,2]
[423662937,1780288239000,-597.7037906,0.00015363,2]
[423662941,1780288239000,-600.0,0.00015391,2]
[423662943,1780288239000,-500.0,0.00015492,2]
[423662951,1780288239000,-500.0,0.00015492,2]
[423662932,1780288239000,-1200.0,0.00015263,2]
[423662953,1780288239000,-500.0,0.00015492,2]
[423662946,1780288239000,-500.0,0.00015492,2]
[423662952,1780288239000,-500.0,0.00015492,2]
[423662945,1780288239000,-500.0,0.00015492,2]
[423662944,1780288239000,-500.0,0.00015492,2]
[423662947,1780288239000,-500.0,0.00015492,2]
[423662954,1780288239000,-500.0,0.00015492,2]
[423662956,1780288239000,-500.0,0.00015637,2]
[423662955,1780288239000,-500.0,0.00015492,2]
[423662957,1780288239000,-500.0,0.00015637,2]
[423662963,1780288239000,-546.80716168,0.00015652,2]
[423662962,1780288239000,-198.01176231,0.00015652,2]
[423662948,1780288239000,-500.0,0.00015492,2]
[423662931,1780288239000,-500.0,0.00015218,2]
[423662923,1780288239000,-500.0,0.00015218,2]
[423662928,1780288239000,-500.0,0.00015218,2]
[423662964,1780288239000,-356.37400387,0.00015652,2]
[423662902,1780288239000,-500.0,0.00014944,2]
[423662901,1780288239000,-500.0,0.00014944,2]
[423662903,1780288239000,-500.0,0.00014944,2]
[423662900,1780288239000,-500.0,0.00014944,2]
[423662905,1780288239000,-1000.0,0.00014944,2]
[423662906,1780288239000,-199.521122,0.00015068,2]
[423662904,1780288239000,-500.0,0.00014944,2]
[423662910,1780288239000,-500.0,0.00015089,2]
[423662907,1780288239000,-500.0,0.00015089,2]
[423662913,1780288239000,-356.24915027,0.0001517,2]
[423662909,1780288239000,-500.0,0.00015089,2]
[423662911,1780288239000,-3128.5,0.00015089,2]
[423662930,1780288239000,-500.0,0.00015218,2]
[423662908,1780288239000,-500.0,0.00015089,2]
[423662914,1780288239000,-364.53810778,0.0001517,2]
[423662915,1780288239000,-178.18700194,0.0001517,2]
[423662917,1780288239000,-355.02057695,0.00015196,2]
[423662924,1780288239000,-500.0,0.00015218,2]
[423662925,1780288239000,-500.0,0.00015218,2]
[423662926,1780288239000,-500.0,0.00015218,2]
[423662927,1780288239000,-500.0,0.00015218,2]
[423662916,1780288239000,-321.08494208,0.0001517,2]
[423662920,1780288239000,-500.0,0.00015218,2]
[423662918,1780288239000,-500.0,0.00015196,2]
[423662921,1780288239000,-500.0,0.00015218,2]
[423662922,1780288239000,-500.0,0.00015218,2]
[423662919,1780288239000,-500.0,0.00015218,2]
[423662912,1780288239000,-661.32,0.00015089,2]
[423662959,1780288239000,-3128.5,0.00015637,2]
[423662993,1780288239000,-500.0,0.00015766,2]
[423662958,1780288239000,-500.0,0.00015637,2]
[423662997,1780288239000,-500.0,0.00015911,2]
[423662998,1780288239000,-500.0,0.00015911,2]
[423662999,1780288239000,-500.0,0.00015911,2]
[423663003,1780288239000,-500.0,0.00015953,2]
[423663002,1780288239000,-500.0,0.00015953,2]
[423663000,1780288239000,-3128.5,0.00015911,2]
[423663001,1780288239000,-661.32,0.00015911,2]
[423663004,1780288239000,-500.0,0.00015953,2]
[423663005,1780288239000,-538.03,0.00015953,2]
[423663009,1780288239000,-500.0,0.00015953,2]
[423663007,1780288239000,-500.0,0.00015953,2]
[423663006,1780288239000,-590.81,0.00015953,2]
[423663008,1780288239000,-500.0,0.00015953,2]
[423662996,1780288239000,-500.0,0.00015766,2]
[423663010,1780288239000,-500.0,0.00015953,2]
[423663016,1780288239000,-171.52036866,0.00015974,2]
[423663014,1780288239000,-360.16036067,0.00015954,2]
[423663011,1780288239000,-335.62599778,0.00015954,2]
[423663015,1780288239000,-712.49830054,0.00015974,2]
[423663013,1780288239000,-360.24766765,0.00015954,2]
[423663017,1780288239000,-312.33983306,0.00015974,2]
[423663018,1780288239000,-212.64507493,0.00015974,2]
[423663020,1780288239000,-186.01131336,0.00015974,2]
[423663022,1780288239000,-729.07621557,0.00015974,2]
[423663019,1780288239000,-396.02352462,0.00015974,2]
[423663021,1780288239000,-290.00066904,0.00015974,2]
[423663023,1780288239000,-399.91263679,0.00015974,2]
[423663025,1780288239000,-642.16988417,0.00015974,2]
[423663012,1780288239000,-383.30387292,0.00015954,2]
[423662995,1780288239000,-500.0,0.00015766,2]
[423662960,1780288239000,-661.32,0.00015637,2]
[423662991,1780288239000,-500.0,0.00015766,2]
[423662965,1780288239000,-481.62741312,0.00015652,2]
[423662961,1780288239000,-534.37372541,0.00015652,2]
[423662966,1780288239000,-420.0,0.00015662,2]
[423662967,1780288239000,-218.18039601,0.00015679,2]
[423662974,1780288239000,-1400.0,0.000157,2]
[423662975,1780288239000,-933.33333334,0.000157,2]
[423662976,1780288239000,-933.33333333,0.000157,2]
[423662977,1780288239000,-933.33333333,0.000157,2]
[423662994,1780288239000,-500.0,0.00015766,2]
[423662980,1780288239000,-273.48950228,0.00015749,2]
[423662968,1780288239000,-532.53086543,0.00015679,2]
[423662970,1780288239000,-159.80709661,0.00015679,2]
[423662969,1780288239000,-369.42452146,0.00015679,2]
[423662973,1780288239000,-1400.0,0.000157,2]
[423662978,1780288239000,-500.0,0.00015744,2]
[423662971,1780288239000,-210.08831202,0.00015679,2]
[423662972,1780288239000,-1400.0,0.000157,2]
[423662987,1780288239000,-500.0,0.00015766,2]
[423662992,1780288239000,-500.0,0.00015766,2]
[423662989,1780288239000,-500.0,0.00015766,2]
[423662990,1780288239000,-500.0,0.00015766,2]
[423662985,1780288239000,-500.0,0.00015766,2]
[423663024,1780288239000,-184.7736042,0.00015974,2]
[423662988,1780288239000,-500.0,0.00015766,2]
[423662982,1780288239000,-347.98773404,0.00015749,2]
[423662983,1780288239000,-251.30242586,0.00015749,2]
[423662984,1780288239000,-586.03057593,0.00015766,2]
[423662981,1780288239000,-215.72854563,0.00015749,2]
[423662979,1780288239000,-362.67730248,0.00015749,2]
[423662986,1780288239000,-500.0,0.00015766,2]
[423663080,1780288240000,-160.0,0.00016459,2]
[423663070,1780288240000,-500.0,0.00016313,2]
[423663065,1780288240000,-500.0,0.00016292,2]
[423663064,1780288240000,-500.0,0.00016227,2]
[423663062,1780288240000,-500.0,0.00016227,2]
[423663060,1780288240000,-590.81,0.00016227,2]
[423663063,1780288240000,-500.0,0.00016227,2]
[423663057,1780288240000,-500.0,0.00016227,2]
[423663068,1780288240000,-500.0,0.00016313,2]
[423663059,1780288240000,-538.03,0.00016227,2]
[423663067,1780288240000,-802.71235521,0.00016296,2]
[423663061,1780288240000,-500.0,0.00016227,2]
[423663082,1780288240000,-160.0,0.00016459,2]
[423663096,1780288240000,-500.0,0.00016501,2]
[423663072,1780288240000,-500.0,0.00016313,2]
[423663069,1780288240000,-500.0,0.00016313,2]
[423663076,1780288240000,-500.0,0.00016313,2]
[423663079,1780288240000,-160.0,0.00016459,2]
[423663074,1780288240000,-500.0,0.00016313,2]
[423663077,1780288240000,-500.0,0.00016313,2]
[423663075,1780288240000,-500.0,0.00016313,2]
[423663073,1780288240000,-500.0,0.00016313,2]
[423663078,1780288240000,-500.0,0.00016313,2]
[423663084,1780288240000,-160.0,0.00016459,2]
[423663094,1780288240000,-590.81,0.00016501,2]
[423663095,1780288240000,-522.09928482,0.00016501,2]
[423663086,1780288240000,-500.0,0.00016459,2]
[423663058,1780288240000,-500.0,0.00016227,2]
[423663081,1780288240000,-160.0,0.00016459,2]
[423663055,1780288240000,-661.32,0.00016185,2]
[423663038,1780288240000,-500.0,0.0001604,2]
[423663056,1780288240000,-500.0,0.00016227,2]
[423663083,1780288240000,-160.0,0.00016459,2]
[423663026,1780288240000,-436.36079201,0.00016001,2]
[423663027,1780288240000,-710.0411539,0.00016001,2]
[423663028,1780288240000,-172.84963765,0.00016001,2]
[423663029,1780288240000,-554.13678219,0.00016001,2]
[423663030,1780288240000,-272.86032224,0.00016001,2]
[423663031,1780288240000,-319.61419323,0.00016001,2]
[423663032,1780288240000,-204.47901603,0.00016001,2]
[423663033,1780288240000,-500.0,0.00016018,2]
[423663034,1780288240000,-500.0,0.0001604,2]
[423663035,1780288240000,-500.0,0.0001604,2]
[423663041,1780288240000,-500.0,0.0001604,2]
[423663040,1780288240000,-500.0,0.0001604,2]
[423663037,1780288240000,-500.0,0.0001604,2]
[423663036,1780288240000,-500.0,0.0001604,2]
[423663039,1780288240000,-500.0,0.0001604,2]
[423663042,1780288240000,-500.0,0.0001604,2]
[423663052,1780288240000,-500.0,0.00016185,2]
[423663050,1780288240000,-170.06817938,0.00016072,2]
[423663044,1780288240000,-500.0,0.0001604,2]
[423663045,1780288240000,-327.21683415,0.00016072,2]
[423663054,1780288240000,-3128.5,0.00016185,2]
[423663043,1780288240000,-275.38,0.0001604,2]
[423663051,1780288240000,-500.0,0.00016185,2]
[423663046,1780288240000,-544.01595373,0.00016072,2]
[423663049,1780288240000,-502.60485172,0.00016072,2]
[423663053,1780288240000,-500.0,0.00016185,2]
[423663047,1780288240000,-546.97900455,0.00016072,2]
[423663048,1780288240000,-195.13457908,0.00016072,2]
[423663066,1780288240000,-222.3800033,0.00016296,2]
[423663087,1780288240000,-500.0,0.00016459,2]
[423663090,1780288240000,-500.0,0.00016501,2]
[423663089,1780288240000,-661.32,0.00016459,2]
[423663126,1780288240000,-500.0,0.00016861,2]
[423663128,1780288240000,-500.0,0.00017007,2]
[423663135,1780288240000,-538.03,0.00017049,2]
[423663122,1780288240000,-500.0,0.00016839,2]
[423663125,1780288240000,-500.0,0.00016861,2]
[423663124,1780288240000,-523.73,0.00016861,2]
[423663132,1780288240000,-500.0,0.00017049,2]
[423663130,1780288240000,-3128.5,0.00017007,2]
[423663127,1780288240000,-720.0,0.0001693,2]
[423663129,1780288240000,-500.0,0.00017007,2]
[423663131,1780288240000,-661.32,0.00017007,2]
[423663145,1780288240000,-500.0,0.00017281,2]
[423663137,1780288240000,-500.0,0.00017049,2]
[423663142,1780288240000,-500.0,0.00017135,2]
[423663139,1780288240000,-500.0,0.00017049,2]
[423663148,1780288240000,-500.0,0.00017323,2]
[423663146,1780288240000,-3128.5,0.00017281,2]
[423663143,1780288240000,-157.25860506,0.00017223,2]
[423663140,1780288240000,-500.0,0.00017113,2]
[423663147,1780288240000,-661.32,0.00017281,2]
[423663144,1780288240000,-500.0,0.00017281,2]
[423663136,1780288240000,-590.81,0.00017049,2]
[423663138,1780288240000,-500.0,0.00017049,2]
[423663141,1780288240000,-500.0,0.00017135,2]
[423663149,1780288240000,-500.0,0.00017323,2]
[423663150,1780288240000,-500.0,0.00017323,2]
[423663153,1780288240000,-500.0,0.00017323,2]
[423663151,1780288240000,-538.03,0.00017323,2]
[423663152,1780288240000,-590.81,0.00017323,2]
[423663134,1780288240000,-500.0,0.00017049,2]
[423663133,1780288240000,-500.0,0.00017049,2]
[423663154,1780288240000,-492.08718558,0.00017323,2]
[423663112,1780288240000,-3128.5,0.00016733,2]
[423663123,1780288240000,-500.0,0.00016861,2]
[423663093,1780288240000,-538.03,0.00016501,2]
[423663088,1780288240000,-3128.5,0.00016459,2]
[423663091,1780288240000,-500.0,0.00016501,2]
[423663092,1780288240000,-500.0,0.00016501,2]
[423663098,1780288240000,-500.0,0.00016501,2]
[423663100,1780288240000,-500.0,0.00016587,2]
[423663097,1780288240000,-500.0,0.00016501,2]
[423663099,1780288240000,-500.0,0.00016565,2]
[423663106,1780288240000,-500.0,0.00016587,2]
[423663104,1780288240000,-500.0,0.00016587,2]
[423663101,1780288240000,-500.0,0.00016587,2]
[423663107,1780288240000,-500.0,0.00016587,2]
[423663108,1780288240000,-500.0,0.00016587,2]
[423663085,1780288240000,-500.0,0.00016459,2]
[423663102,1780288240000,-500.0,0.00016587,2]
[423663103,1780288240000,-500.0,0.00016587,2]
[423663119,1780288240000,-500.0,0.00016775,2]
[423663115,1780288240000,-500.0,0.00016775,2]
[423663113,1780288240000,-661.32,0.00016733,2]
[423663116,1780288240000,-500.0,0.00016775,2]
[423663118,1780288240000,-590.81,0.00016775,2]
[423663111,1780288240000,-285.74009715,0.00016733,2]
[423663114,1780288240000,-500.0,0.00016775,2]
[423663109,1780288240000,-500.0,0.00016733,2]
[423663121,1780288240000,-500.0,0.00016775,2]
[423663120,1780288240000,-500.0,0.00016775,2]
[423663110,1780288240000,-500.0,0.00016733,2]
[423663105,1780288240000,-500.0,0.00016587,2]
[423663117,1780288240000,-538.03,0.00016775,2]
[423663189,1780288241000,-538.03,0.00018145,2]
[423663194,1780288241000,-3128.5,0.00018377,2]
[423663192,1780288241000,-500.0,0.00018231,2]
[423663191,1780288241000,-500.0,0.00018145,2]
[423663198,1780288241000,-500.0,0.00018419,2]
[423663187,1780288241000,-500.0,0.00018145,2]
[423663188,1780288241000,-500.0,0.00018145,2]
[423663190,1780288241000,-590.81,0.00018145,2]
[423663197,1780288241000,-500.0,0.00018419,2]
[423663186,1780288241000,-500.0,0.00018145,2]
[423663195,1780288241000,-661.32,0.00018377,2]
[423663199,1780288241000,-538.03,0.00018419,2]
[423663193,1780288241000,-500.0,0.00018231,2]
[423663210,1780288241000,-500.0,0.00018693,2]
[423663202,1780288241000,-315.23,0.00018505,2]
[423663203,1780288241000,-247.13,0.00018505,2]
[423663209,1780288241000,-590.81,0.00018693,2]
[423663204,1780288241000,-864.0,0.00018623,2]
[423663201,1780288241000,-500.0,0.00018419,2]
[423663208,1780288241000,-538.03,0.00018693,2]
[423663211,1780288241000,-3128.5,0.00018925,2]
[423663207,1780288241000,-500.0,0.00018693,2]
[423663206,1780288241000,-661.32,0.00018651,2]
[423663213,1780288241000,-538.03,0.00018967,2]
[423663205,1780288241000,-3128.5,0.00018651,2]
[423663212,1780288241000,-661.32,0.00018925,2]
[423663196,1780288241000,-500.0,0.00018419,2]
[423663215,1780288241000,-3128.5,0.00019199,2]
[423663200,1780288241000,-590.81,0.00018419,2]
[423663184,1780288241000,-3128.5,0.00018103,2]
[423663168,1780288241000,-500.0,0.00017597,2]
[423663179,1780288241000,-590.81,0.00017871,2]
[423663214,1780288241000,-590.81,0.00018967,2]
[423663159,1780288241000,-500.0,0.00017555,2]
[423663160,1780288241000,-3128.5,0.00017555,2]
[423663155,1780288241000,-500.0,0.00017323,2]
[423663156,1780288241000,-500.0,0.00017409,2]
[423663157,1780288241000,-500.0,0.00017409,2]
[423663158,1780288241000,-500.0,0.00017555,2]
[423663161,1780288241000,-661.32,0.00017555,2]
[423663171,1780288241000,-500.0,0.00017829,2]
[423663170,1780288241000,-500.0,0.00017683,2]
[423663166,1780288241000,-538.03,0.00017597,2]
[423663163,1780288241000,-500.0,0.00017597,2]
[423663172,1780288241000,-500.0,0.00017829,2]
[423663185,1780288241000,-661.32,0.00018103,2]
[423663162,1780288241000,-230.398,0.00017592,2]
[423663165,1780288241000,-500.0,0.00017597,2]
[423663169,1780288241000,-500.0,0.00017683,2]
[423663164,1780288241000,-500.0,0.00017597,2]
[423663173,1780288241000,-3128.5,0.00017829,2]
[423663176,1780288241000,-500.0,0.00017871,2]
[423663174,1780288241000,-661.32,0.00017829,2]
[423663175,1780288241000,-500.0,0.00017871,2]
[423663177,1780288241000,-500.0,0.00017871,2]
[423663181,1780288241000,-500.0,0.00017957,2]
[423663178,1780288241000,-538.03,0.00017871,2]
[423663183,1780288241000,-500.0,0.00018103,2]
[423663180,1780288241000,-500.0,0.00017871,2]
[423663182,1780288241000,-500.0,0.00017957,2]
[423663167,1780288241000,-590.81,0.00017597,2]
[423663225,1780288241000,-538.03,0.00019789,2]
[423663280,1780288241000,-386.01433159,0.00025047,2]
[423663217,1780288241000,-538.03,0.00019241,2]
[423663248,1780288241000,-248.74685437,0.0002124,2]
[423663257,1780288241000,-5759.7069912,0.00021893,2]
[423663253,1780288241000,-151.0,0.00021454,6]
[423663255,1780288241000,-538.03,0.00021707,2]
[423663265,1780288241000,-195.346639,0.0002426,2]
[423663264,1780288241000,-244.0,0.00022534,10]
[423663256,1780288241000,-590.81,0.00021707,2]
[423663266,1780288241000,-1000.0,0.00024787,10]
[423663254,1780288241000,-4569.33360471,0.00021552,2]
[423663259,1780288241000,-538.03,0.00021981,2]
[423663262,1780288241000,-590.83,0.00022255,2]
[423663260,1780288241000,-590.81,0.00021981,2]
[423663258,1780288241000,-199.521122,0.00021918,2]
[423663247,1780288241000,-590.81,0.00021159,2]
[423663261,1780288241000,-538.19,0.00022255,2]